[Event "Early-Titled-Tuesday-Blitz-August-29-2023"]
[Site "Chess.com"]
[Date "2023.08.29"]
[Round "1"]
[White "HansOnTwitch"]
[Black "Mihaiionescu1"]
[Result "1-0"]
[WhiteElo "2970"]
[BlackElo "2506"]
[TimeControl "180+1"]
[EndTime "8:06:23 PDT"]
[Termination "HansOnTwitch won by resignation"]

1. e4 {[%clk 0:02:59.3]} 1... c5 {[%clk 0:02:58.8]} 2. Nf3 {[%clk 0:02:57]} 2...
d6 {[%clk 0:02:42.2]} 3. d4 {[%clk 0:02:56.1]} 3... cxd4 {[%clk 0:02:43.1]} 4.
Nxd4 {[%clk 0:02:55.7]} 4... Nf6 {[%clk 0:02:43.6]} 5. Nc3 {[%clk 0:02:55.7]}
5... g6 {[%clk 0:02:44]} 6. Be3 {[%clk 0:02:53.7]} 6... Bg7 {[%clk 0:02:42.5]}
7. f3 {[%clk 0:02:53.8]} 7... Nc6 {[%clk 0:02:30.1]} 8. Qd2 {[%clk 0:02:52.1]}
8... O-O {[%clk 0:02:30.5]} 9. O-O-O {[%clk 0:02:51.7]} 9... d5 {[%clk
0:02:30.8]} 10. exd5 {[%clk 0:02:48.1]} 10... Nxd5 {[%clk 0:02:30.7]} 11. Nxc6
{[%clk 0:02:48.7]} 11... bxc6 {[%clk 0:02:31.5]} 12. Bd4 {[%clk 0:02:47]} 12...
e5 {[%clk 0:02:32]} 13. Bc5 {[%clk 0:02:46.9]} 13... Re8 {[%clk 0:02:32.3]} 14.
Ne4 {[%clk 0:02:42]} 14... Qc7 {[%clk 0:02:31.6]} 15. h4 {[%clk 0:02:39.4]}
15... h6 {[%clk 0:02:29.2]} 16. g4 {[%clk 0:02:33.9]} 16... a5 {[%clk
0:02:21.7]} 17. h5 {[%clk 0:02:03.7]} 17... g5 {[%clk 0:02:20.2]} 18. c4 {[%clk
0:01:55.9]} 18... Nf4 {[%clk 0:01:37.2]} 19. Qd6 {[%clk 0:01:42.9]} 19... Qxd6
{[%clk 0:01:27.7]} 20. Rxd6 {[%clk 0:01:35.6]} 20... Bf8 {[%clk 0:01:05.1]} 21.
Nf6+ {[%clk 0:01:33.5]} 21... Kh8 {[%clk 0:00:53.5]} 22. Nxe8 {[%clk 0:01:33.1]}
22... Be6 {[%clk 0:00:50.1]} 23. Rxe6 {[%clk 0:01:29.6]} 23... Nxe6 {[%clk
0:00:49.3]} 24. Bxf8 {[%clk 0:01:28.3]} 24... Rxe8 {[%clk 0:00:43.1]} 25. Bd6
{[%clk 0:01:27.9]} 25... f6 {[%clk 0:00:39.1]} 26. c5 {[%clk 0:01:23.2]} 26...
Nd4 {[%clk 0:00:38.5]} 27. Rh3 {[%clk 0:01:15.9]} 27... Kg7 {[%clk 0:00:36.1]}
28. Bd3 {[%clk 0:01:14.9]} 28... Rd8 {[%clk 0:00:32.4]} 29. Be4 {[%clk
0:01:13.3]} 29... Rc8 {[%clk 0:00:30.9]} 30. Rh2 {[%clk 0:01:12.5]} 30... Kf7
{[%clk 0:00:28.1]} 31. Rd2 {[%clk 0:01:11.8]} 31... Kg7 {[%clk 0:00:17.3]} 32.
b3 {[%clk 0:01:07.1]} 32... a4 {[%clk 0:00:14.6]} 33. Kb2 {[%clk 0:01:06.1]}
33... axb3 {[%clk 0:00:13.4]} 34. axb3 {[%clk 0:01:05.9]} 34... Ra8 {[%clk
0:00:13.3]} 35. Rxd4 {[%clk 0:01:03.4]} 35... exd4 {[%clk 0:00:12.6]} 36. Bxc6
{[%clk 0:01:04.1]} 36... Rc8 {[%clk 0:00:12.9]} 37. Bd7 {[%clk 0:01:04.1]} 37...
Rd8 {[%clk 0:00:12.3]} 38. c6 {[%clk 0:01:03.8]} 38... d3 {[%clk 0:00:10.9]} 39.
Kc3 {[%clk 0:01:03]} 1-0

[Event "Early-Titled-Tuesday-Blitz-August-29-2023"]
[Site "Chess.com"]
[Date "2023.08.29"]
[Round "1"]
[White "TrahtarBelarus"]
[Black "ProfessorChess101"]
[Result "1-0"]
[WhiteElo "2752"]
[BlackElo "2415"]
[TimeControl "180+1"]
[EndTime "8:06:31 PDT"]
[Termination "TrahtarBelarus won by resignation"]

1. d4 {[%clk 0:02:57.4]} 1... Nf6 {[%clk 0:02:59.8]} 2. Bf4 {[%clk 0:02:51.8]}
2... d5 {[%clk 0:02:56.1]} 3. e3 {[%clk 0:02:50.6]} 3... c5 {[%clk 0:02:56.1]}
4. c3 {[%clk 0:02:49.8]} 4... Nc6 {[%clk 0:02:56.5]} 5. Nf3 {[%clk 0:02:46.1]}
5... Nh5 {[%clk 0:02:56.8]} 6. Bg3 {[%clk 0:02:35.1]} 6... e6 {[%clk 0:02:46.9]}
7. Nbd2 {[%clk 0:02:28.1]} 7... cxd4 {[%clk 0:02:34.3]} 8. exd4 {[%clk
0:02:26.3]} 8... g6 {[%clk 0:02:24.5]} 9. Bd3 {[%clk 0:02:25.1]} 9... Bh6 {[%clk
0:02:23]} 10. O-O {[%clk 0:02:24.5]} 10... O-O {[%clk 0:02:23.2]} 11. Re1 {[%clk
0:02:24.2]} 11... b6 {[%clk 0:02:16.2]} 12. Ne5 {[%clk 0:02:03.9]} 12... Nxg3
{[%clk 0:01:37.5]} 13. Nxc6 {[%clk 0:01:49.2]} 13... Qc7 {[%clk 0:01:34.8]} 14.
Nxa7 {[%clk 0:01:14.5]} 14... Nh5 {[%clk 0:01:23.2]} 15. Nb5 {[%clk 0:01:13.9]}
15... Qe7 {[%clk 0:01:22.4]} 16. Nf3 {[%clk 0:01:11.2]} 16... Nf4 {[%clk
0:01:17.6]} 17. Bf1 {[%clk 0:01:11.4]} 17... Ba6 {[%clk 0:01:14]} 18. a4 {[%clk
0:01:11.4]} 18... Bxb5 {[%clk 0:01:12.2]} 19. axb5 {[%clk 0:01:11.8]} 19... Rxa1
{[%clk 0:01:01.4]} 20. Qxa1 {[%clk 0:01:12.7]} 20... Qf6 {[%clk 0:01:02]} 21.
Ne5 {[%clk 0:01:06.7]} 21... Qg5 {[%clk 0:00:58.4]} 22. g3 {[%clk 0:01:06.1]}
22... f6 {[%clk 0:00:45]} 23. Nd7 {[%clk 0:00:48.7]} 23... Re8 {[%clk
0:00:29.6]} 24. Nxb6 {[%clk 0:00:37.6]} 24... e5 {[%clk 0:00:24]} 25. Qa7 {[%clk
0:00:35.3]} 25... e4 {[%clk 0:00:21.1]} 26. Qd7 {[%clk 0:00:35.1]} 26... Rf8
{[%clk 0:00:16.9]} 27. h4 {[%clk 0:00:33.6]} 27... Qh5 {[%clk 0:00:14.8]} 28.
gxf4 {[%clk 0:00:33.6]} 28... Bxf4 {[%clk 0:00:14.7]} 29. Qxd5+ {[%clk
0:00:33.4]} 1-0

[Event "Early-Titled-Tuesday-Blitz-August-29-2023"]
[Site "Chess.com"]
[Date "2023.08.29"]
[Round "1"]
[White "santosalberto1987"]
[Black "ferrufino64"]
[Result "1-0"]
[WhiteElo "2553"]
[BlackElo "2081"]
[TimeControl "180+1"]
[EndTime "8:06:31 PDT"]
[Termination "santosalberto1987 won by resignation"]

1. e4 {[%clk 0:03:00.9]} 1... c5 {[%clk 0:02:59.4]} 2. Nf3 {[%clk 0:03:01]} 2...
d6 {[%clk 0:02:59]} 3. Bb5+ {[%clk 0:02:58.3]} 3... Bd7 {[%clk 0:02:58.8]} 4.
Bxd7+ {[%clk 0:02:58.1]} 4... Qxd7 {[%clk 0:02:59.7]} 5. c4 {[%clk 0:02:58.3]}
5... e5 {[%clk 0:02:59.1]} 6. O-O {[%clk 0:02:57]} 6... Nc6 {[%clk 0:02:58.6]}
7. Nc3 {[%clk 0:02:57.1]} 7... Nge7 {[%clk 0:02:56.1]} 8. d3 {[%clk 0:02:56.9]}
8... g6 {[%clk 0:02:56.4]} 9. Nd5 {[%clk 0:02:51.7]} 9... Nxd5 {[%clk
0:02:54.7]} 10. exd5 {[%clk 0:02:51.5]} 10... Ne7 {[%clk 0:02:54.9]} 11. a3
{[%clk 0:02:42.9]} 11... Bg7 {[%clk 0:02:53.2]} 12. Rb1 {[%clk 0:02:43.2]} 12...
O-O {[%clk 0:02:51.5]} 13. b4 {[%clk 0:02:43.3]} 13... b6 {[%clk 0:02:51.9]} 14.
Bd2 {[%clk 0:02:34.6]} 14... h6 {[%clk 0:02:24.8]} 15. bxc5 {[%clk 0:02:26.4]}
15... bxc5 {[%clk 0:02:24.5]} 16. Qb3 {[%clk 0:02:26.5]} 16... Qg4 {[%clk
0:02:17.1]} 17. h3 {[%clk 0:02:20.5]} 17... Qh5 {[%clk 0:02:16.9]} 18. Qb7
{[%clk 0:02:09.4]} 18... Nf5 {[%clk 0:02:11.5]} 19. Kh2 {[%clk 0:02:00.9]} 19...
e4 {[%clk 0:01:56.3]} 20. g4 {[%clk 0:01:54.3]} 20... Be5+ {[%clk 0:01:33.9]}
21. Nxe5 {[%clk 0:01:54]} 21... Qh4 {[%clk 0:01:19.7]} 22. gxf5 {[%clk
0:01:34.6]} 22... dxe5 {[%clk 0:01:13.6]} 23. fxg6 {[%clk 0:01:12.5]} 23... Rfb8
{[%clk 0:00:45.8]} 24. Qxb8+ {[%clk 0:01:10.3]} 24... Rxb8 {[%clk 0:00:46]} 25.
Rxb8+ {[%clk 0:01:11.2]} 25... Kg7 {[%clk 0:00:46.6]} 26. gxf7 {[%clk 0:01:08]}
26... Kxf7 {[%clk 0:00:36.8]} 27. Rb7+ {[%clk 0:01:06.1]} 27... Kg6 {[%clk
0:00:28.7]} 28. Be3 {[%clk 0:01:04.4]} 28... exd3 {[%clk 0:00:25.5]} 29. Rg1+
{[%clk 0:00:55.3]} 29... Kh5 {[%clk 0:00:25.4]} 30. Rh7 {[%clk 0:00:44.4]} 30...
Qf6 {[%clk 0:00:07.7]} 31. Rxh6+ {[%clk 0:00:44]} 1-0

[Event "Early-Titled-Tuesday-Blitz-August-29-2023"]
[Site "Chess.com"]
[Date "2023.08.29"]
[Round "1"]
[White "Durarbayli"]
[Black "GameOverBro"]
[Result "1-0"]
[WhiteElo "2891"]
[BlackElo "2470"]
[TimeControl "180+1"]
[EndTime "8:06:37 PDT"]
[Termination "Durarbayli won on time"]

1. e4 {[%clk 0:03:00.9]} 1... d6 {[%clk 0:02:59.9]} 2. d4 {[%clk 0:02:59.5]}
2... Nf6 {[%clk 0:03:00.4]} 3. Nc3 {[%clk 0:02:59.8]} 3... e5 {[%clk 0:03:00.8]}
4. Nf3 {[%clk 0:02:59.6]} 4... Nbd7 {[%clk 0:03:01.1]} 5. Be2 {[%clk 0:02:55.2]}
5... Be7 {[%clk 0:03:00.9]} 6. O-O {[%clk 0:02:55.2]} 6... c6 {[%clk 0:03:00.9]}
7. a4 {[%clk 0:02:55.3]} 7... Qc7 {[%clk 0:02:59.7]} 8. a5 {[%clk 0:02:52.7]}
8... O-O {[%clk 0:02:59.2]} 9. h3 {[%clk 0:02:52.3]} 9... Re8 {[%clk 0:02:57.7]}
10. Re1 {[%clk 0:02:52.5]} 10... Nf8 {[%clk 0:02:54.7]} 11. Be3 {[%clk
0:02:51.6]} 11... Ng6 {[%clk 0:02:54.5]} 12. Qd2 {[%clk 0:02:51]} 12... h6
{[%clk 0:02:45.1]} 13. Bf1 {[%clk 0:02:45.4]} 13... Nh5 {[%clk 0:02:43.9]} 14.
g3 {[%clk 0:02:44.3]} 14... Nf6 {[%clk 0:02:23.8]} 15. Kh2 {[%clk 0:02:44.2]}
15... Be6 {[%clk 0:02:20.7]} 16. Bg2 {[%clk 0:02:36]} 16... Rad8 {[%clk
0:02:18]} 17. d5 {[%clk 0:02:34]} 17... cxd5 {[%clk 0:02:03.6]} 18. exd5 {[%clk
0:02:33.2]} 18... Bf5 {[%clk 0:01:56.9]} 19. Bxa7 {[%clk 0:02:32.9]} 19... Rc8
{[%clk 0:01:52.7]} 20. Bb6 {[%clk 0:02:28.5]} 20... Qd7 {[%clk 0:01:41.1]} 21.
Ng1 {[%clk 0:01:55.3]} 21... Bd8 {[%clk 0:01:19.6]} 22. Bxd8 {[%clk 0:01:51.5]}
22... Rexd8 {[%clk 0:01:19.3]} 23. g4 {[%clk 0:01:47.9]} 23... Bxg4 {[%clk
0:01:17.2]} 24. hxg4 {[%clk 0:01:48.4]} 24... Nxg4+ {[%clk 0:01:17.8]} 25. Kh1
{[%clk 0:01:48.9]} 25... Nf4 {[%clk 0:01:12.6]} 26. Ra4 {[%clk 0:01:37.2]} 26...
Qf5 {[%clk 0:01:09.2]} 27. Rxf4 {[%clk 0:01:31.3]} 27... exf4 {[%clk 0:01:07.4]}
28. Nh3 {[%clk 0:01:30.9]} 28... g5 {[%clk 0:01:06]} 29. Be4 {[%clk 0:01:13.8]}
29... Qf6 {[%clk 0:00:56]} 30. Rg1 {[%clk 0:01:12.7]} 30... h5 {[%clk
0:00:18.1]} 31. Bf3 {[%clk 0:01:12.3]} 31... Re8 {[%clk 0:00:13.2]} 32. Bxg4
{[%clk 0:01:11.2]} 32... hxg4 {[%clk 0:00:13]} 33. Rxg4 {[%clk 0:01:12.1]} 33...
Re5 {[%clk 0:00:11.7]} 34. Kg2 {[%clk 0:00:55.1]} 34... Kf8 {[%clk 0:00:09.6]}
35. f3 {[%clk 0:00:49.7]} 1-0

[Event "Early-Titled-Tuesday-Blitz-August-29-2023"]
[Site "Chess.com"]
[Date "2023.08.29"]
[Round "1"]
[White "hurricane7791"]
[Black "Fleetw00dMac"]
[Result "1-0"]
[WhiteElo "2793"]
[BlackElo "2423"]
[TimeControl "180+1"]
[EndTime "8:06:40 PDT"]
[Termination "hurricane7791 won by resignation"]

1. d4 {[%clk 0:03:00.9]} 1... Nf6 {[%clk 0:02:58.9]} 2. c4 {[%clk 0:03:00.5]}
2... g6 {[%clk 0:02:59.2]} 3. Nc3 {[%clk 0:02:59.9]} 3... Bg7 {[%clk 0:02:59.8]}
4. e4 {[%clk 0:03:00.5]} 4... d6 {[%clk 0:03:00.4]} 5. h3 {[%clk 0:03:01]} 5...
O-O {[%clk 0:03:00.3]} 6. Be3 {[%clk 0:03:01.6]} 6... c5 {[%clk 0:02:58.6]} 7.
d5 {[%clk 0:03:00.6]} 7... e6 {[%clk 0:02:58.4]} 8. Bd3 {[%clk 0:03:01.3]} 8...
exd5 {[%clk 0:02:58.4]} 9. exd5 {[%clk 0:03:02.2]} 9... Na6 {[%clk 0:02:54.2]}
10. Nf3 {[%clk 0:03:02]} 10... Nb4 {[%clk 0:02:54.2]} 11. Bb1 {[%clk 0:03:02.6]}
11... b5 {[%clk 0:02:53.5]} 12. a3 {[%clk 0:03:00]} 12... Qa5 {[%clk 0:02:52.8]}
13. cxb5 {[%clk 0:02:53.8]} 13... Nbxd5 {[%clk 0:02:39.4]} 14. O-O {[%clk
0:02:38.4]} 14... Nxc3 {[%clk 0:02:11.5]} 15. bxc3 {[%clk 0:02:37.3]} 15... Bb7
{[%clk 0:02:11.7]} 16. c4 {[%clk 0:02:18.6]} 16... Ne4 {[%clk 0:02:06.9]} 17.
Bxe4 {[%clk 0:02:18]} 17... Bxe4 {[%clk 0:02:05]} 18. Ra2 {[%clk 0:02:14.2]}
18... Rad8 {[%clk 0:01:59.7]} 19. Bd2 {[%clk 0:01:53.1]} 19... Qc7 {[%clk
0:01:55.6]} 20. Bf4 {[%clk 0:01:52]} 20... Qb7 {[%clk 0:01:49.8]} 21. Re1 {[%clk
0:01:46.8]} 21... d5 {[%clk 0:01:47.7]} 22. Rd2 {[%clk 0:01:47]} 22... d4 {[%clk
0:01:45.9]} 23. a4 {[%clk 0:01:46.6]} 23... Rfe8 {[%clk 0:01:40.2]} 24. Rde2
{[%clk 0:01:46.8]} 24... d3 {[%clk 0:01:35.6]} 25. Re3 {[%clk 0:01:41.7]} 25...
Bc3 {[%clk 0:01:33.7]} 26. Nd2 {[%clk 0:01:39.9]} 26... Bxd2 {[%clk 0:01:21.5]}
27. Qxd2 {[%clk 0:01:40.8]} 27... Re6 {[%clk 0:01:14]} 28. f3 {[%clk 0:01:31.2]}
28... Bf5 {[%clk 0:01:13.9]} 29. Rxe6 {[%clk 0:01:30.1]} 29... Bxe6 {[%clk
0:01:12.4]} 30. Be5 {[%clk 0:01:29.6]} 30... Qe7 {[%clk 0:01:09.9]} 31. Bc3
{[%clk 0:01:27.6]} 31... f6 {[%clk 0:01:07.3]} 32. Qf4 {[%clk 0:01:24.4]} 32...
Kf7 {[%clk 0:01:07.1]} 33. a5 {[%clk 0:01:24]} 33... g5 {[%clk 0:01:01.6]} 34.
Qe4 {[%clk 0:01:20.7]} 34... f5 {[%clk 0:00:48.4]} 35. Qe5 {[%clk 0:01:18.9]}
35... Kg6 {[%clk 0:00:48.3]} 36. h4 {[%clk 0:01:11.5]} 36... Re8 {[%clk
0:00:47]} 37. b6 {[%clk 0:01:06.3]} 37... axb6 {[%clk 0:00:46.5]} 38. axb6
{[%clk 0:01:07.2]} 38... Qf7 {[%clk 0:00:45.5]} 39. hxg5 {[%clk 0:01:02.5]}
39... Bd7 {[%clk 0:00:43.3]} 40. Qd6+ {[%clk 0:01:02]} 40... Kxg5 {[%clk
0:00:39]} 41. Rxe8 {[%clk 0:00:51.3]} 41... Bxe8 {[%clk 0:00:38.8]} 42. Qg3+
{[%clk 0:00:39.6]} 42... Kh5 {[%clk 0:00:36.3]} 43. Bd2 {[%clk 0:00:40.2]} 43...
f4 {[%clk 0:00:35.2]} 44. Qg4+ {[%clk 0:00:38.6]} 1-0

[Event "Early-Titled-Tuesday-Blitz-August-29-2023"]
[Site "Chess.com"]
[Date "2023.08.29"]
[Round "1"]
[White "CheckThis4"]
[Black "BashirliSaadat"]
[Result "0-1"]
[WhiteElo "2679"]
[BlackElo "2397"]
[TimeControl "180+1"]
[EndTime "8:06:40 PDT"]
[Termination "BashirliSaadat won by checkmate"]

1. d4 {[%clk 0:03:00.9]} 1... Nf6 {[%clk 0:02:59.3]} 2. Nf3 {[%clk 0:03:01.1]}
2... g6 {[%clk 0:02:58.7]} 3. Nc3 {[%clk 0:03:00.8]} 3... Bg7 {[%clk 0:02:58.1]}
4. e4 {[%clk 0:03:00.3]} 4... d6 {[%clk 0:02:58]} 5. Be2 {[%clk 0:03:00.4]} 5...
Nbd7 {[%clk 0:02:53.4]} 6. O-O {[%clk 0:03:00.2]} 6... O-O {[%clk 0:02:51.8]} 7.
Re1 {[%clk 0:02:57.5]} 7... e5 {[%clk 0:02:51.7]} 8. a4 {[%clk 0:02:55.2]} 8...
Re8 {[%clk 0:02:46.7]} 9. Bf1 {[%clk 0:02:55.1]} 9... c6 {[%clk 0:02:45.4]} 10.
a5 {[%clk 0:02:54.5]} 10... Qc7 {[%clk 0:02:41.3]} 11. h3 {[%clk 0:02:51.1]}
11... exd4 {[%clk 0:02:35.7]} 12. Nxd4 {[%clk 0:02:50.5]} 12... Ne5 {[%clk
0:02:35.8]} 13. f4 {[%clk 0:02:44.1]} 13... Ned7 {[%clk 0:02:34.5]} 14. Nf3
{[%clk 0:02:39.4]} 14... Nc5 {[%clk 0:02:27.7]} 15. e5 {[%clk 0:02:39.5]} 15...
dxe5 {[%clk 0:02:24.1]} 16. fxe5 {[%clk 0:02:40.4]} 16... Nfd7 {[%clk
0:02:23.2]} 17. Bf4 {[%clk 0:02:37.7]} 17... Nxe5 {[%clk 0:02:00.5]} 18. Nxe5
{[%clk 0:02:23]} 18... Bxe5 {[%clk 0:01:59.3]} 19. Rxe5 {[%clk 0:02:10]} 19...
Rxe5 {[%clk 0:01:54.8]} 20. Qd4 {[%clk 0:02:02.2]} 20... Nd7 {[%clk 0:01:26.8]}
21. Re1 {[%clk 0:01:56.8]} 21... f6 {[%clk 0:01:22.9]} 22. Qc4+ {[%clk
0:01:25.9]} 22... Kg7 {[%clk 0:01:21.2]} 23. Nb5 {[%clk 0:01:25.2]} 23... Qxa5
{[%clk 0:01:16.4]} 24. Bxe5 {[%clk 0:00:51.3]} 24... Qxe1 {[%clk 0:00:57.9]} 25.
Nd6 {[%clk 0:00:40.6]} 25... Nxe5 {[%clk 0:00:50.7]} 26. Qc5 {[%clk 0:00:32.7]}
26... Be6 {[%clk 0:00:40]} 27. Nxb7 {[%clk 0:00:30.8]} 27... Bc4 {[%clk
0:00:36]} 28. Qe7+ {[%clk 0:00:30.5]} 28... Kh6 {[%clk 0:00:35.3]} 29. Nd6
{[%clk 0:00:20.7]} 29... Qxf1+ {[%clk 0:00:33.8]} 30. Kh2 {[%clk 0:00:21]} 30...
Qf4+ {[%clk 0:00:33.7]} 31. Kh1 {[%clk 0:00:21.3]} 31... Bd5 {[%clk 0:00:25.9]}
32. c4 {[%clk 0:00:19]} 32... Qf1+ {[%clk 0:00:25.5]} 33. Kh2 {[%clk 0:00:18.7]}
33... Qxg2# {[%clk 0:00:26.1]} 0-1

[Event "Early-Titled-Tuesday-Blitz-August-29-2023"]
[Site "Chess.com"]
[Date "2023.08.29"]
[Round "1"]
[White "Mikhail_Golubev"]
[Black "DKmirl"]
[Result "1-0"]
[WhiteElo "2602"]
[BlackElo "2233"]
[TimeControl "180+1"]
[EndTime "8:06:40 PDT"]
[Termination "Mikhail_Golubev won on time"]

1. e4 {[%clk 0:03:00.9]} 1... c5 {[%clk 0:02:39.8]} 2. Nf3 {[%clk 0:02:59.7]}
2... Nc6 {[%clk 0:02:34.3]} 3. Nc3 {[%clk 0:02:58.7]} 3... g6 {[%clk 0:02:29.2]}
4. d4 {[%clk 0:02:57.5]} 4... cxd4 {[%clk 0:02:27.5]} 5. Nxd4 {[%clk 0:02:58.4]}
5... Bg7 {[%clk 0:02:26.8]} 6. Be3 {[%clk 0:02:58.8]} 6... Nf6 {[%clk
0:02:26.3]} 7. Bc4 {[%clk 0:02:58.1]} 7... O-O {[%clk 0:02:26.2]} 8. Bb3 {[%clk
0:02:57.9]} 8... a5 {[%clk 0:02:22.8]} 9. O-O {[%clk 0:02:54]} 9... d6 {[%clk
0:02:16.3]} 10. f3 {[%clk 0:02:34.4]} 10... Nd7 {[%clk 0:02:08.7]} 11. a4 {[%clk
0:02:27.5]} 11... Nc5 {[%clk 0:01:55.9]} 12. Ndb5 {[%clk 0:02:24.6]} 12... Nxb3
{[%clk 0:01:49.4]} 13. cxb3 {[%clk 0:02:24.1]} 13... Bd7 {[%clk 0:01:26.2]} 14.
Rf2 {[%clk 0:02:15.7]} 14... Nb4 {[%clk 0:01:19.1]} 15. Bd4 {[%clk 0:01:59.8]}
15... Bh6 {[%clk 0:00:59.7]} 16. Qe2 {[%clk 0:01:47.3]} 16... Na6 {[%clk
0:00:37.9]} 17. Rd1 {[%clk 0:01:40.6]} 17... Qc8 {[%clk 0:00:25.2]} 18. Nd5
{[%clk 0:01:35.6]} 18... Qd8 {[%clk 0:00:17.1]} 19. Bb6 {[%clk 0:01:30.7]} 19...
Qe8 {[%clk 0:00:14.1]} 20. Nxd6 {[%clk 0:01:29]} 20... Qb8 {[%clk 0:00:09.7]}
21. Nxe7+ {[%clk 0:01:23.5]} 21... Kh8 {[%clk 0:00:07.7]} 22. Bd4+ {[%clk
0:01:11]} 22... Bg7 {[%clk 0:00:05]} 23. Qe3 {[%clk 0:00:55.9]} 23... Be6 {[%clk
0:00:02.5]} 24. Bxg7+ {[%clk 0:00:43.8]} 24... Kxg7 {[%clk 0:00:02.5]} 25. Qd4+
{[%clk 0:00:39.3]} 25... f6 {[%clk 0:00:03.1]} 26. e5 {[%clk 0:00:35]} 26... f5
{[%clk 0:00:02.6]} 27. Nd5 {[%clk 0:00:30.8]} 1-0

[Event "Early-Titled-Tuesday-Blitz-August-29-2023"]
[Site "Chess.com"]
[Date "2023.08.29"]
[Round "1"]
[White "Reader777"]
[Black "CADMartin"]
[Result "1-0"]
[WhiteElo "2886"]
[BlackElo "2465"]
[TimeControl "180+1"]
[EndTime "8:06:41 PDT"]
[Termination "Reader777 won by checkmate"]

1. d4 {[%clk 0:03:00.9]} 1... Nf6 {[%clk 0:02:54.6]} 2. c4 {[%clk 0:03:00.7]}
2... c5 {[%clk 0:02:47]} 3. d5 {[%clk 0:03:00.5]} 3... b5 {[%clk 0:02:42.7]} 4.
cxb5 {[%clk 0:03:00.8]} 4... a6 {[%clk 0:02:42.7]} 5. e3 {[%clk 0:03:01]} 5...
axb5 {[%clk 0:02:42.3]} 6. Bxb5 {[%clk 0:03:01.9]} 6... Qa5+ {[%clk 0:02:42]} 7.
Nc3 {[%clk 0:03:02.3]} 7... Bb7 {[%clk 0:02:42.2]} 8. Bd2 {[%clk 0:03:02.9]}
8... Qb6 {[%clk 0:02:42.2]} 9. Nf3 {[%clk 0:03:03.4]} 9... Nxd5 {[%clk
0:02:41.6]} 10. a4 {[%clk 0:03:04]} 10... e6 {[%clk 0:02:41.3]} 11. O-O {[%clk
0:03:04.3]} 11... Be7 {[%clk 0:02:41.5]} 12. e4 {[%clk 0:03:04.8]} 12... Nf6
{[%clk 0:02:39.8]} 13. Bg5 {[%clk 0:03:02.8]} 13... h6 {[%clk 0:02:35.2]} 14.
Bh4 {[%clk 0:02:57.7]} 14... Nxe4 {[%clk 0:02:23.5]} 15. Nxe4 {[%clk 0:02:48.7]}
15... Bxe4 {[%clk 0:02:23.1]} 16. Bxe7 {[%clk 0:02:46.9]} 16... Kxe7 {[%clk
0:02:24]} 17. Ne5 {[%clk 0:02:47]} 17... d6 {[%clk 0:02:20.8]} 18. Qg4 {[%clk
0:02:38.2]} 18... dxe5 {[%clk 0:02:05.6]} 19. Qxe4 {[%clk 0:02:37.3]} 19... Ra7
{[%clk 0:02:04.8]} 20. Qxe5 {[%clk 0:02:36.4]} 20... Nc6 {[%clk 0:01:46.2]} 21.
Qxg7 {[%clk 0:02:31.7]} 21... Raa8 {[%clk 0:01:46.3]} 22. Rfe1 {[%clk
0:02:12.2]} 22... Nd4 {[%clk 0:01:24.9]} 23. Qg3 {[%clk 0:01:16.7]} 23... Rhg8
{[%clk 0:01:16.4]} 24. Qc3 {[%clk 0:01:07.3]} 24... Rg5 {[%clk 0:01:05.5]} 25.
Bf1 {[%clk 0:01:04.9]} 25... Qb7 {[%clk 0:00:31.2]} 26. Re3 {[%clk 0:00:53]}
26... Rag8 {[%clk 0:00:26.6]} 27. Rg3 {[%clk 0:00:51.7]} 27... h5 {[%clk
0:00:20.6]} 28. h4 {[%clk 0:00:47.7]} 28... Rxg3 {[%clk 0:00:16.5]} 29. Qxc5+
{[%clk 0:00:47.6]} 29... Ke8 {[%clk 0:00:16.7]} 30. fxg3 {[%clk 0:00:46.7]}
30... Rg4 {[%clk 0:00:06.7]} 31. Rd1 {[%clk 0:00:45.3]} 31... Qe4 {[%clk
0:00:03.6]} 32. Bb5+ {[%clk 0:00:40]} 32... Nxb5 {[%clk 0:00:03.4]} 33. Qc8+
{[%clk 0:00:39.4]} 33... Ke7 {[%clk 0:00:03.8]} 34. Qd8# {[%clk 0:00:40]} 1-0

[Event "Early-Titled-Tuesday-Blitz-August-29-2023"]
[Site "Chess.com"]
[Date "2023.08.29"]
[Round "1"]
[White "Kubas1010"]
[Black "Thormento16"]
[Result "1-0"]
[WhiteElo "2686"]
[BlackElo "2370"]
[TimeControl "180+1"]
[EndTime "8:06:46 PDT"]
[Termination "Kubas1010 won by resignation"]

1. e4 {[%clk 0:02:59]} 1... e5 {[%clk 0:02:59.8]} 2. Nf3 {[%clk 0:02:58.7]} 2...
Nc6 {[%clk 0:03:00.1]} 3. Bc4 {[%clk 0:02:48.5]} 3... Nf6 {[%clk 0:02:58.6]} 4.
d3 {[%clk 0:02:47.1]} 4... Be7 {[%clk 0:02:57.4]} 5. O-O {[%clk 0:02:46.2]} 5...
O-O {[%clk 0:02:57.9]} 6. Re1 {[%clk 0:02:46.3]} 6... d6 {[%clk 0:02:50.9]} 7.
a4 {[%clk 0:02:45.9]} 7... a6 {[%clk 0:02:47.1]} 8. a5 {[%clk 0:02:38.4]} 8...
Bg4 {[%clk 0:02:30.7]} 9. Nbd2 {[%clk 0:02:38]} 9... h6 {[%clk 0:02:12]} 10. h3
{[%clk 0:02:35.8]} 10... Bh5 {[%clk 0:02:11.7]} 11. Nf1 {[%clk 0:02:33.4]} 11...
Nd4 {[%clk 0:02:08.4]} 12. g4 {[%clk 0:02:33]} 12... Nxf3+ {[%clk 0:02:08.2]}
13. Qxf3 {[%clk 0:02:32.3]} 13... Bg6 {[%clk 0:02:08.6]} 14. Ng3 {[%clk
0:02:19.3]} 14... Nh7 {[%clk 0:02:06.5]} 15. Kh1 {[%clk 0:01:56.3]} 15... Bg5
{[%clk 0:02:05.3]} 16. Nf5 {[%clk 0:01:52.9]} 16... c6 {[%clk 0:01:56.9]} 17.
Rg1 {[%clk 0:01:47.8]} 17... Rc8 {[%clk 0:01:33.5]} 18. Be3 {[%clk 0:01:35.7]}
18... d5 {[%clk 0:01:17.4]} 19. Bb3 {[%clk 0:01:28.6]} 19... d4 {[%clk
0:01:07.7]} 20. Bc1 {[%clk 0:01:22.8]} 20... Re8 {[%clk 0:01:03.2]} 21. Qg3
{[%clk 0:01:19.6]} 21... Bxc1 {[%clk 0:00:52.3]} 22. Raxc1 {[%clk 0:01:17.2]}
22... Nf8 {[%clk 0:00:45.9]} 23. h4 {[%clk 0:01:13.4]} 23... Ne6 {[%clk
0:00:45.6]} 24. Qxe5 {[%clk 0:01:04.4]} 24... Bxf5 {[%clk 0:00:45.8]} 25. gxf5
{[%clk 0:01:03.4]} 25... Qxh4+ {[%clk 0:00:46]} 26. Qh2 {[%clk 0:00:58.8]} 26...
Qxh2+ {[%clk 0:00:43.6]} 27. Kxh2 {[%clk 0:00:59.7]} 27... Ng5 {[%clk
0:00:43.8]} 28. Rg3 {[%clk 0:00:51.1]} 28... Kh7 {[%clk 0:00:26]} 29. f4 {[%clk
0:00:47.3]} 29... Nxe4 {[%clk 0:00:25.5]} 30. dxe4 {[%clk 0:00:47.1]} 30... Rxe4
{[%clk 0:00:26.4]} 31. Bxf7 {[%clk 0:00:43.4]} 31... Rc7 {[%clk 0:00:21.5]} 32.
Bg6+ {[%clk 0:00:31.4]} 32... Kg8 {[%clk 0:00:22.1]} 33. f6 {[%clk 0:00:29.6]}
33... Re2+ {[%clk 0:00:20.4]} 34. Kh3 {[%clk 0:00:29.7]} 34... gxf6 {[%clk
0:00:20.8]} 35. Bd3+ {[%clk 0:00:29.4]} 1-0